[Event "Queens Festival Europe 2022"]
[Site "Tornelo"]
[Date "2022.06.19"]
[Round "6.2"]
[White "Shuqja, Klean"]
[Black "Deak-Sala, Emilia"]
[Result "1/2-1/2"]
[ECO "B31"]
[WhiteElo "1839"]
[BlackElo "1883"]
[Annotator "NA RC"]
[PlyCount "166"]
[EventDate "2022.06.19"]
[EventType "swiss"]
[EventCountry "NET"]
[SourceTitle "playchess.com"]
[Source "ChessBase"]
[SourceQuality "1"]
[TimeControl "180+2"]

1. e4 {[%emt 0:00:02]} c5 {[%emt 0:00:05]} 2. Nf3 {[%emt 0:00:02]} Nc6 {[%emt 0:00:01]} 3. Bb5 {[%emt 0:00:02]} g6 {[%emt 0:00:03]} 4. O-O {[%emt 0:00:05]} Bg7 {[%emt 0:00:01]} 5. Re1 {[%emt 0:00:02]} Nf6 {[%emt 0:00:05]} 6. e5 {[%emt 0:00:03]} Nd5 {[%emt 0:00:04]} 7. c4 {[%emt 0:00:08]} Nc7 {[%emt 0:00:02]} 8. Bxc6 {[%emt 0:00:02]} dxc6 {[%emt 0:00:24]} 9. Nc3 {[%emt 0:00:58]} O-O {[%emt 0:00:02]} 10. Ne4 {[%emt 0:00:07]} b6 {[%emt 0:00:04]} 11. h3 {[%emt 0:00:26]} Ne6 {[%emt 0:00:04]} 12. b4 {[%emt 0:00:12]} Nd4 {[%emt 0:00:35]} 13. Bb2 {[%emt 0:00:20]} Nxf3+ {[%emt 0:01:33]} 14. Qxf3 {[%emt 0:00:00]} cxb4 {[%emt 0:00:02]} 15. d4 {[%emt 0:00:03]} Ba6 {[%emt 0:00:01]} 16. Qb3 {[%emt 0:00:05]} c5 {[%emt 0:00:15]} 17. dxc5 {[%emt 0:00:09]} bxc5 {[%emt 0:00:03]} 18. Nxc5 {[%emt 0:00:02]} Qa5 {[%emt 0:00:03]} 19. Nxa6 {[%emt 0:00:05]} Qxa6 {[%emt 0:00:01]} 20. Qxb4 {[%emt 0:00:02]} Rab8 {[%emt 0:00:01]} 21. Qc3 {[%emt 0:00:04]} Qc6 {[%emt 0:00:03]} 22. Ba3 {[%emt 0:00:05]} Rfe8 {[%emt 0:00:01]} 23. Bb4 {[%emt 0:00:14]} f6 {[%emt 0:00:02]} 24. c5 {[%emt 0:00:25]} fxe5 {[%emt 0:00:03]} 25. Qc4+ {[%emt 0:00:01]} Kh8 {[%emt 0:00:01]} 26. Bc3 {[%emt 0:00:02]} Rbc8 {[%emt 0:00:02]} 27. Bxe5 {[%emt 0:00:03]} Qxc5 {[%emt 0:00:01]} 28. Qxc5 {[%emt 0:00:04]} Rxc5 {[%emt 0:00:02]} 29. Bxg7+ {[%emt 0:00:01]} Kxg7 {[%emt 0:00:01]} 30. Re6 {[%emt 0:00:02]} Rc7 {[%emt 0:00:02]} 31. Rae1 {[%emt 0:00:02]} Kf7 {[%emt 0:00:01]} 32. g3 {[%emt 0:00:02]} Rd8 {[%emt 0:00:01]} 33. a4 {[%emt 0:00:03]} Rd4 {[%emt 0:00:02]} 34. R6e4 {[%emt 0:00:01]} Rdc4 {[%emt 0:00:04]} 35. Rxc4 {[%emt 0:00:02]} Rxc4 {[%emt 0:00:02]} 36. a5 {[%emt 0:00:03]} Ra4 {[%emt 0:00:02]} 37. Re5 {[%emt 0:00:02]} Kf6 {[%emt 0:00:01]} 38. Rb5 {[%emt 0:00:01]} e6 {[%emt 0:00:04]} 39. Kg2 {[%emt 0:00:02]} a6 {[%emt 0:00:03]} 40. Rb7 {[%emt 0:00:03]} Rxa5 {[%emt 0:00:02]} 41. Rxh7 {[%emt 0:00:02]} Rb5 {[%emt 0:00:02]} 42. Ra7 {[%emt 0:00:01]} a5 {[%emt 0:00:01]} 43. h4 {[%emt 0:00:03]} Rd5 {[%emt 0:00:03]} 44. Kh3 {[%emt 0:00:01]} Rb5 {[%emt 0:00:02]} 45. Kg4 {[%emt 0:00:02]} Rb4+ {[%emt 0:00:02]} 46. f4 {[%emt 0:00:01]} a4 {[%emt 0:00:02]} 47. Ra6 {[%emt 0:00:02]} Re4 {[%emt 0:00:03]} 48. h5 {[%emt 0:00:02]} gxh5+ {[%emt 0:00:02]} 49. Kxh5 {[%emt 0:00:02]} Kf5 {[%emt 0:00:02]} 50. Kh4 {[%emt 0:00:04]} e5 {[%emt 0:00:02]} 51. Ra5 {[%emt 0:00:02]} Rb4 {[%emt 0:00:04]} 52. Kh5 {[%emt 0:00:02]} Re4 {[%emt 0:00:03]} 53. fxe5 {[%emt 0:00:02]} Rxe5 {[%emt 0:00:01]} 54. Rxa4 {[%emt 0:00:02]} Kf6+ {[%emt 0:00:02]} 55. Kh4 {[%emt 0:00:01]} Kf5 {[%emt 0:00:03]} 56. Rf4+ {[%emt 0:00:02]} Kg6 {[%emt 0:00:01]} 57. Kg4 {[%emt 0:00:01]} Rg5+ {[%emt 0:00:02]} 58. Kf3 {[%emt 0:00:02]} Rf5 {[%emt 0:00:01]} 59. Kg4 {[%emt 0:00:04]} Rg5+ {[%emt 0:00:02]} 60. Kf3 {[%emt 0:00:02]} Rf5 {[%emt 0:00:02]} 61. Ke4 {[%emt 0:00:01]} Rg5 {[%emt 0:00:02]} 62. g4 {[%emt 0:00:02]} Ra5 {[%emt 0:00:02]} 63. Kf3 {[%emt 0:00:02]} Ra3+ {[%emt 0:00:01]} 64. Kg2 {[%emt 0:00:02]} Ra2+ {[%emt 0:00:02]} 65. Kg3 {[%emt 0:00:02]} Ra3+ {[%emt 0:00:02]} 66. Kh4 {[%emt 0:00:01]} Ra5 {[%emt 0:00:01]} 67. Rb4 {[%emt 0:00:02]} Ra6 {[%emt 0:00:02]} 68. Kg3 {[%emt 0:00:04]} Ra3+ {[%emt 0:00:02]} 69. Kf4 {[%emt 0:00:01]} Ra6 {[%emt 0:00:02]} 70. Re4 {[%emt 0:00:02]} Rf6+ {[%emt 0:00:02]} 71. Kg3 {[%emt 0:00:03]} Ra6 {[%emt 0:00:02]} 72. Kh4 {[%emt 0:00:02]} Rb6 {[%emt 0:00:03]} 73. Re5 {[%emt 0:00:02]} Rc6 {[%emt 0:00:01]} 74. Rg5+ {[%emt 0:00:01]} Kh6 {[%emt 0:00:03]} 75. Re5 {[%emt 0:00:03]} Kg6 {[%emt 0:00:03]} 76. g5 {[%emt 0:00:02]} Rc4+ {[%emt 0:00:02]} 77. Kg3 {[%emt 0:00:02]} Rc3+ {[%emt 0:00:01]} 78. Kf4 {[%emt 0:00:01]} Rc4+ {[%emt 0:00:02]} 79. Kf3 {[%emt 0:00:02]} Rc3+ {[%emt 0:00:02]} 80. Ke4 {[%emt 0:00:01]} Rc4+ {[%emt 0:00:01]} 81. Kd3 {[%emt 0:00:04]} Rg4 {[%emt 0:00:02]} 82. Ke3 {[%emt 0:00:02]} Rxg5 {[%emt 0:00:01]} 83. Rxg5+ {[%emt 0:00:01]} Kxg5 {[%emt 0:00:01]} 1/2-1/2

[Event "Queens Festival Europe 2022"]
[Site "Tornelo"]
[Date "2022.06.19"]
[Round "6.2"]
[White "Subramanian, Anusha"]
[Black "Khalilova, Khadija"]
[Result "1-0"]
[ECO "B51"]
[WhiteElo "1671"]
[BlackElo "1777"]
[Annotator "NA RC"]
[PlyCount "55"]
[EventDate "2022.06.19"]
[EventType "swiss"]
[EventCountry "NET"]
[SourceTitle "playchess.com"]
[Source "ChessBase"]
[SourceQuality "1"]
[TimeControl "180+2"]

1. e4 {[%emt 0:00:02]} c5 {[%emt 0:00:05]} 2. Nf3 {[%emt 0:00:02]} d6 {[%emt 0:00:02]} 3. Bb5+ {[%emt 0:00:01]} Nc6 {[%emt 0:00:04]} 4. O-O {[%emt 0:00:10]} e6 {[%emt 0:00:03]} 5. d4 {[%emt 0:00:04]} cxd4 {[%emt 0:00:04]} 6. Nxd4 {[%emt 0:00:04]} Bd7 {[%emt 0:00:01]} 7. Nxc6 {[%emt 0:00:22]} bxc6 {[%emt 0:00:06]} 8. Be2 {[%emt 0:00:05]} d5 {[%emt 0:00:13]} 9. exd5 {[%emt 0:00:11]} cxd5 {[%emt 0:00:04]} 10. c4 {[%emt 0:00:01]} dxc4 {[%emt 0:00:04]} 11. Bxc4 {[%emt 0:00:02]} Nf6 {[%emt 0:00:02]} 12. Nc3 {[%emt 0:00:03]} Bc5 {[%emt 0:00:04]} 13. Bg5 {[%emt 0:00:05]} O-O {[%emt 0:00:10]} 14. Ne4 {[%emt 0:00:04]} Be7 {[%emt 0:00:05]} 15. Nxf6+ {[%emt 0:00:04]} Bxf6 {[%emt 0:00:02]} 16. Bxf6 {[%emt 0:00:02]} gxf6 {[%emt 0:00:03]} 17. Qd6 {[%emt 0:00:03]} Rc8 {[%emt 0:00:12]} 18. Bb3 {[%emt 0:00:10]} Bb5 {[%emt 0:00:03]} 19. Qg3+ {[%emt 0:00:07]} Kh8 {[%emt 0:00:03]} 20. Rfd1 {[%emt 0:00:02]} Qc7 {[%emt 0:00:07]} 21. Qh4 {[%emt 0:00:08]} Qe5 {[%emt 0:00:05]} 22. Rab1 {[%emt 0:00:08]} Rg8 {[%emt 0:00:05]} 23. Re1 {[%emt 0:00:13]} Qf5 {[%emt 0:00:13]} 24. Rbc1 {[%emt 0:00:28]} Rxc1 {[%emt 0:00:13]} 25. Rxc1 {[%emt 0:00:01]} Ba6 {[%emt 0:00:43]} 26. Bc2 {[%emt 0:00:11]} Bd3 {[%emt 0:00:03]} 27. Bxd3 {[%emt 0:00:04]} Qxd3 {[%emt 0:00:02]} 28. Qxf6+ {[%emt 0:00:01]} 1-0

[Event "Queens Festival Europe 2022"]
[Site "Tornelo"]
[Date "2022.06.19"]
[Round "6.2"]
[White "Vujovic, Vera"]
[Black "Rahimli, Ulkar"]
[Result "1-0"]
[ECO "B88"]
[WhiteElo "1353"]
[BlackElo "1268"]
[Annotator "NA RC"]
[PlyCount "113"]
[EventDate "2022.06.19"]
[EventType "swiss"]
[EventCountry "NET"]
[SourceTitle "playchess.com"]
[Source "ChessBase"]
[SourceQuality "1"]
[TimeControl "180+2"]

1. e4 {[%emt 0:00:02]} c5 {[%emt 0:00:08]} 2. Nf3 {[%emt 0:00:02]} d6 {[%emt 0:00:03]} 3. d4 {[%emt 0:00:01]} cxd4 {[%emt 0:00:03]} 4. Nxd4 {[%emt 0:00:02]} Nf6 {[%emt 0:00:02]} 5. Nc3 {[%emt 0:00:01]} a6 {[%emt 0:00:03]} 6. Be3 {[%emt 0:00:02]} e6 {[%emt 0:00:03]} 7. f3 {[%emt 0:00:02]} Be7 {[%emt 0:00:02]} 8. Bc4 {[%emt 0:00:02]} O-O {[%emt 0:00:03]} 9. Qd2 {[%emt 0:00:03]} Qc7 {[%emt 0:00:02]} 10. Bb3 {[%emt 0:00:01]} Nc6 {[%emt 0:00:03]} 11. O-O-O {[%emt 0:00:02]} Bd7 {[%emt 0:00:02]} 12. h4 {[%emt 0:00:03]} b5 {[%emt 0:00:03]} 13. h5 {[%emt 0:00:02]} Ne5 {[%emt 0:00:15]} 14. h6 {[%emt 0:00:03]} g6 {[%emt 0:00:03]} 15. g4 {[%emt 0:00:13]} Nc4 {[%emt 0:00:14]} 16. Bxc4 {[%emt 0:00:02]} Qxc4 {[%emt 0:00:02]} 17. g5 {[%emt 0:00:02]} Ne8 {[%emt 0:00:03]} 18. Qd3 {[%emt 0:00:15]} Rc8 {[%emt 0:00:07]} 19. f4 {[%emt 0:00:06]} Qxd3 {[%emt 0:00:08]} 20. Rxd3 {[%emt 0:00:03]} Rc4 {[%emt 0:00:08]} 21. b3 {[%emt 0:00:07]} Rc7 {[%emt 0:00:04]} 22. Kb2 {[%emt 0:00:06]} e5 {[%emt 0:00:06]} 23. fxe5 {[%emt 0:00:06]} dxe5 {[%emt 0:00:02]} 24. Nf3 {[%emt 0:00:01]} Bd6 {[%emt 0:00:15]} 25. Rhd1 {[%emt 0:00:04]} Be6 {[%emt 0:00:04]} 26. Rxd6 {[%emt 0:00:05]} Nxd6 {[%emt 0:00:03]} 27. Rxd6 {[%emt 0:00:01]} Rfc8 {[%emt 0:00:04]} 28. Bd2 {[%emt 0:00:07]} b4 {[%emt 0:00:03]} 29. Nd5 {[%emt 0:00:10]} Bxd5 {[%emt 0:00:03]} 30. Rxd5 {[%emt 0:00:04]} Rxc2+ {[%emt 0:00:02]} 31. Kb1 {[%emt 0:00:02]} Kf8 {[%emt 0:00:18]} 32. Nxe5 {[%emt 0:00:03]} a5 {[%emt 0:00:13]} 33. Nc4 {[%emt 0:00:03]} R2xc4 {[%emt 0:00:03]} 34. bxc4 {[%emt 0:00:01]} Rxc4 {[%emt 0:00:01]} 35. Rxa5 {[%emt 0:00:02]} Rxe4 {[%emt 0:00:02]} 36. Rb5 {[%emt 0:00:04]} Rg4 {[%emt 0:00:05]} 37. Rxb4 {[%emt 0:00:09]} Rg2 {[%emt 0:00:03]} 38. Kc2 {[%emt 0:00:17]} Ke8 {[%emt 0:00:01]} 39. a4 {[%emt 0:00:01]} Kd7 {[%emt 0:00:02]} 40. a5 {[%emt 0:00:01]} Kc6 {[%emt 0:00:02]} 41. a6 {[%emt 0:00:01]} Rg1 {[%emt 0:00:02]} 42. a7 {[%emt 0:00:10]} Ra1 {[%emt 0:00:02]} 43. Be3 {[%emt 0:00:02]} Kc7 {[%emt 0:00:04]} 44. Rb8 {[%emt 0:00:04]} f6 {[%emt 0:00:04]} 45. gxf6 {[%emt 0:00:03]} g5 {[%emt 0:00:03]} 46. a8=Q {[%emt 0:00:03]} Rxa8 {[%emt 0:00:03]} 47. Rxa8 {[%emt 0:00:02]} g4 {[%emt 0:00:02]} 48. Rg8 {[%emt 0:00:02]} g3 {[%emt 0:00:01]} 49. f7 {[%emt 0:00:01]} Kd7 {[%emt 0:00:02]} 50. f8=Q {[%emt 0:00:04]} g2 {[%emt 0:00:01]} 51. Qf7+ {[%emt 0:00:01]} Kd6 {[%emt 0:00:02]} 52. Rxg2 {[%emt 0:00:01]} Ke5 {[%emt 0:00:02]} 53. Qxh7 {[%emt 0:00:03]} Kf6 {[%emt 0:00:02]} 54. Rg6+ {[%emt 0:00:02]} Kf5 {[%emt 0:00:02]} 55. Ra6+ {[%emt 0:00:02]} Kg4 {[%emt 0:00:01]} 56. Qe4+ {[%emt 0:00:04]} Kh5 {[%emt 0:00:02]} 57. Ra5# {[%emt 0:00:02]} 1-0

[Event "Queens Festival Europe 2022"]
[Site "Tornelo"]
[Date "2022.06.19"]
[Round "6.3"]
[White "Amrayeva, Aytan"]
[Black "Okuyaz, Duru"]
[Result "0-1"]
[ECO "D00"]
[WhiteElo "2143"]
[BlackElo "2090"]
[Annotator "NA RC"]
[PlyCount "68"]
[EventDate "2022.06.19"]
[EventType "swiss"]
[EventCountry "NET"]
[SourceTitle "playchess.com"]
[Source "ChessBase"]
[SourceQuality "1"]
[TimeControl "180+2"]

1. d4 {[%emt 0:00:02]} d5 {[%emt 0:00:05]} 2. e3 {[%emt 0:00:02]} Nf6 {[%emt 0:00:01]} 3. Bd3 {[%emt 0:00:03]} c5 {[%emt 0:00:01]} 4. c3 {[%emt 0:00:02]} Nc6 {[%emt 0:00:02]} 5. f4 {[%emt 0:00:01]} Bg4 {[%emt 0:00:03]} 6. Nf3 {[%emt 0:00:03]} e6 {[%emt 0:00:04]} 7. Nbd2 {[%emt 0:00:03]} Be7 {[%emt 0:00:04]} 8. O-O {[%emt 0:00:02]} O-O {[%emt 0:00:02]} 9. Qe1 {[%emt 0:00:01]} Bf5 {[%emt 0:00:05]} 10. Bb1 {[%emt 0:00:13]} Ne4 {[%emt 0:00:05]} 11. Ne5 {[%emt 0:00:06]} f6 {[%emt 0:00:23]} 12. Bxe4 {[%emt 0:00:02]} dxe4 {[%emt 0:00:07]} 13. Nxc6 {[%emt 0:00:05]} bxc6 {[%emt 0:00:01]} 14. Qe2 {[%emt 0:00:09]} cxd4 {[%emt 0:00:04]} 15. exd4 {[%emt 0:00:03]} c5 {[%emt 0:00:04]} 16. Nxe4 {[%emt 0:00:43]} cxd4 {[%emt 0:00:09]} 17. Rd1 {[%emt 0:00:01]} e5 {[%emt 0:00:28]} 18. Ng3 {[%emt 0:00:05]} d3 {[%emt 0:00:13]} 19. Qe3 {[%emt 0:00:09]} exf4 {[%emt 0:00:03]} 20. Qxf4 {[%emt 0:00:04]} Bc5+ {[%emt 0:00:05]} 21. Be3 {[%emt 0:00:06]} Bxe3+ {[%emt 0:00:02]} 22. Qxe3 {[%emt 0:00:02]} Re8 {[%emt 0:00:02]} 23. Qc5 {[%emt 0:00:14]} Bg6 {[%emt 0:00:04]} 24. Rd2 {[%emt 0:00:12]} Re5 {[%emt 0:00:17]} 25. Qc4+ {[%emt 0:00:03]} Kh8 {[%emt 0:00:03]} 26. Rad1 {[%emt 0:00:19]} Qb6+ {[%emt 0:00:02]} 27. Kh1 {[%emt 0:00:23]} Rae8 {[%emt 0:00:03]} 28. Nf1 {[%emt 0:00:29]} h6 {[%emt 0:00:13]} 29. b4 {[%emt 0:00:03]} Re1 {[%emt 0:00:02]} 30. h3 {[%emt 0:00:05]} Rxd1 {[%emt 0:00:04]} 31. Rxd1 {[%emt 0:00:03]} Qf2 {[%emt 0:00:02]} 32. Nd2 {[%emt 0:00:06]} Re1+ {[%emt 0:00:07]} 33. Rxe1 {[%emt 0:00:02]} Qxe1+ {[%emt 0:00:01]} 34. Kh2 {[%emt 0:00:01]} Qxd2 {[%emt 0:00:02]} 0-1

[Event "Queens Festival Europe 2022"]
[Site "Tornelo"]
[Date "2022.06.19"]
[Round "6.3"]
[White "Gjergji, Rozana"]
[Black "Grigoryan, Meri"]
[Result "1-0"]
[ECO "C63"]
[WhiteElo "1920"]
[BlackElo "1993"]
[Annotator "NA RC"]
[PlyCount "57"]
[EventDate "2022.06.19"]
[EventType "swiss"]
[EventCountry "NET"]
[SourceTitle "playchess.com"]
[Source "ChessBase"]
[SourceQuality "1"]
[TimeControl "180+2"]

1. e4 {[%emt 0:00:02]} e5 {[%emt 0:00:04]} 2. Nf3 {[%emt 0:00:02]} Nc6 {[%emt 0:00:01]} 3. Bb5 {[%emt 0:00:02]} f5 {[%emt 0:00:02]} 4. Bxc6 {[%emt 0:00:14]} dxc6 {[%emt 0:00:03]} 5. exf5 {[%emt 0:00:09]} Bxf5 {[%emt 0:00:34]} 6. Nxe5 {[%emt 0:00:04]} Qe7 {[%emt 0:00:03]} 7. O-O {[%emt 0:00:08]} O-O-O {[%emt 0:00:21]} 8. f4 {[%emt 0:00:12]} Nf6 {[%emt 0:00:07]} 9. Nc3 {[%emt 0:00:05]} Qc5+ {[%emt 0:00:18]} 10. Kh1 {[%emt 0:00:08]} Bg6 {[%emt 0:00:44]} 11. d3 {[%emt 0:00:05]} Bd6 {[%emt 0:00:04]} 12. Qe2 {[%emt 0:00:12]} Bxe5 {[%emt 0:00:08]} 13. fxe5 {[%emt 0:00:04]} Rhe8 {[%emt 0:00:05]} 14. Bf4 {[%emt 0:00:08]} Bh5 {[%emt 0:00:05]} 15. Qe1 {[%emt 0:00:11]} Ng4 {[%emt 0:00:05]} 16. Qh4 {[%emt 0:00:12]} g6 {[%emt 0:00:31]} 17. h3 {[%emt 0:00:24]} Ne3 {[%emt 0:00:02]} 18. Bxe3 {[%emt 0:00:07]} Qxe3 {[%emt 0:00:01]} 19. Rae1 {[%emt 0:00:07]} Qd2 {[%emt 0:00:02]} 20. g4 {[%emt 0:00:03]} Qxc2 {[%emt 0:00:04]} 21. gxh5 {[%emt 0:00:04]} Rxd3 {[%emt 0:00:09]} 22. Qg4+ {[%emt 0:00:08]} Kb8 {[%emt 0:00:03]} 23. e6 {[%emt 0:00:11]} Rd2 {[%emt 0:00:01]} 24. Qg3 {[%emt 0:00:07]} Qxb2 {[%emt 0:00:04]} 25. e7 {[%emt 0:00:04]} Kc8 {[%emt 0:00:07]} 26. Rf8 {[%emt 0:00:08]} Kd7 {[%emt 0:00:04]} 27. Qg4+ {[%emt 0:00:07]} Kd6 {[%emt 0:00:01]} 28. Ne4+ {[%emt 0:00:03]} Kd5 {[%emt 0:00:02]} 29. Nxd2 {[%emt 0:00:05]} 1-0

[Event "Queens Festival Europe 2022"]
[Site "Tornelo"]
[Date "2022.06.19"]
[Round "6.3"]
[White "Bayona, Karin Silvana"]
[Black "Rybackova, Lucie"]
[Result "0-1"]
[ECO "B43"]
[WhiteElo "1793"]
[BlackElo "1696"]
[Annotator "NA RC"]
[PlyCount "94"]
[EventDate "2022.06.19"]
[EventType "swiss"]
[EventCountry "NET"]
[SourceTitle "playchess.com"]
[Source "ChessBase"]
[SourceQuality "1"]
[TimeControl "180+2"]

1. e4 {[%emt 0:00:02]} c5 {[%emt 0:00:07]} 2. Nf3 {[%emt 0:00:02]} e6 {[%emt 0:00:03]} 3. d4 {[%emt 0:00:01]} cxd4 {[%emt 0:00:01]} 4. Nxd4 {[%emt 0:00:01]} a6 {[%emt 0:00:01]} 5. Nc3 {[%emt 0:00:01]} Qc7 {[%emt 0:00:02]} 6. Be3 {[%emt 0:00:03]} Bb4 {[%emt 0:00:01]} 7. Bd2 {[%emt 0:00:16]} Nf6 {[%emt 0:00:09]} 8. Bd3 {[%emt 0:00:11]} d5 {[%emt 0:00:15]} 9. O-O {[%emt 0:00:13]} Bxc3 {[%emt 0:00:08]} 10. Bxc3 {[%emt 0:00:05]} dxe4 {[%emt 0:00:02]} 11. Be2 {[%emt 0:00:16]} O-O {[%emt 0:00:02]} 12. Qd2 {[%emt 0:00:19]} b5 {[%emt 0:00:08]} 13. a3 {[%emt 0:00:04]} Bb7 {[%emt 0:00:02]} 14. Qg5 {[%emt 0:00:02]} Nd5 {[%emt 0:00:08]} 15. Nxb5 {[%emt 0:00:20]} f6 {[%emt 0:00:10]} 16. Nxc7 {[%emt 0:00:05]} fxg5 {[%emt 0:00:02]} 17. Nxa8 {[%emt 0:00:10]} Nxc3 {[%emt 0:00:03]} 18. bxc3 {[%emt 0:00:04]} Bxa8 {[%emt 0:00:02]} 19. Bc4 {[%emt 0:00:02]} Bd5 {[%emt 0:00:04]} 20. Bxd5 {[%emt 0:00:07]} exd5 {[%emt 0:00:02]} 21. Rfd1 {[%emt 0:00:01]} Rd8 {[%emt 0:00:07]} 22. Rab1 {[%emt 0:00:07]} Kf7 {[%emt 0:00:07]} 23. Rb7+ {[%emt 0:00:21]} Kf6 {[%emt 0:00:04]} 24. Rb6+ {[%emt 0:00:02]} Ke5 {[%emt 0:00:05]} 25. Rdb1 {[%emt 0:00:04]} Nd7 {[%emt 0:00:04]} 26. Rxa6 {[%emt 0:00:01]} Rc8 {[%emt 0:00:02]} 27. Ra7 {[%emt 0:00:07]} Nf6 {[%emt 0:00:08]} 28. Rxg7 {[%emt 0:00:04]} Rxc3 {[%emt 0:00:01]} 29. Rxg5+ {[%emt 0:00:10]} Kf4 {[%emt 0:00:06]} 30. Rg7 {[%emt 0:00:07]} Rxa3 {[%emt 0:00:07]} 31. g3+ {[%emt 0:00:03]} Ke5 {[%emt 0:00:02]} 32. Rgb7 {[%emt 0:00:06]} Rc3 {[%emt 0:00:04]} 33. R1b2 {[%emt 0:00:04]} d4 {[%emt 0:00:05]} 34. R7b5+ {[%emt 0:00:05]} Nd5 {[%emt 0:00:02]} 35. Ra2 {[%emt 0:00:08]} d3 {[%emt 0:00:13]} 36. cxd3 {[%emt 0:00:05]} Rxd3 {[%emt 0:00:04]} 37. Re2 {[%emt 0:00:06]} Kd4 {[%emt 0:00:07]} 38. Rb8 {[%emt 0:00:02]} Nc3 {[%emt 0:00:04]} 39. Rc2 {[%emt 0:00:03]} Rd1+ {[%emt 0:00:03]} 40. Kg2 {[%emt 0:00:03]} Kd3 {[%emt 0:00:03]} 41. Rd8+ {[%emt 0:00:02]} Kxc2 {[%emt 0:00:02]} 42. Rh8 {[%emt 0:00:03]} Rd7 {[%emt 0:00:02]} 43. Re8 {[%emt 0:00:02]} Kd3 {[%emt 0:00:03]} 44. h4 {[%emt 0:00:02]} Nd1 {[%emt 0:00:02]} 45. h5 {[%emt 0:00:03]} Nc3 {[%emt 0:00:03]} 46. g4 {[%emt 0:00:01]} Nd5 {[%emt 0:00:01]} 47. g5 {[%emt 0:00:05]} Nf4+ {[%emt 0:00:02]} 0-1

[Event "Queens Festival Europe 2022"]
[Site "Tornelo"]
[Date "2022.06.19"]
[Round "6.3"]
[White "Valiyeva, Asnad"]
[Black "Bakhshizada, Asnad"]
[Result "1-0"]
[ECO "D00"]
[WhiteElo "1237"]
[BlackElo "1052"]
[Annotator "NA RC"]
[PlyCount "87"]
[EventDate "2022.06.19"]
[EventType "swiss"]
[EventCountry "NET"]
[SourceTitle "playchess.com"]
[Source "ChessBase"]
[SourceQuality "1"]
[TimeControl "180+2"]

1. d4 {[%emt 0:00:02]} d5 {[%emt 0:00:05]} 2. Bf4 {[%emt 0:00:02]} Nf6 {[%emt 0:00:03]} 3. e3 {[%emt 0:00:02]} Bf5 {[%emt 0:00:02]} 4. c4 {[%emt 0:00:04]} e6 {[%emt 0:00:02]} 5. Nc3 {[%emt 0:00:02]} c6 {[%emt 0:00:03]} 6. Qb3 {[%emt 0:00:02]} Qc8 {[%emt 0:00:04]} 7. Nf3 {[%emt 0:00:02]} Nbd7 {[%emt 0:00:02]} 8. Be2 {[%emt 0:00:03]} h6 {[%emt 0:00:02]} 9. O-O {[%emt 0:00:03]} Be7 {[%emt 0:00:04]} 10. h3 {[%emt 0:00:03]} O-O {[%emt 0:00:04]} 11. Rac1 {[%emt 0:00:03]} Ne4 {[%emt 0:00:13]} 12. cxd5 {[%emt 0:00:11]} Nxc3 {[%emt 0:00:04]} 13. Rxc3 {[%emt 0:00:03]} exd5 {[%emt 0:00:03]} 14. Rfc1 {[%emt 0:00:03]} Nf6 {[%emt 0:00:16]} 15. Bd3 {[%emt 0:00:06]} Ne4 {[%emt 0:00:02]} 16. Bxe4 {[%emt 0:00:02]} Bxe4 {[%emt 0:00:02]} 17. Nd2 {[%emt 0:00:02]} Bf5 {[%emt 0:00:06]} 18. Qd1 {[%emt 0:00:08]} Qd7 {[%emt 0:00:04]} 19. Nf3 {[%emt 0:00:02]} Bb4 {[%emt 0:00:10]} 20. Rb3 {[%emt 0:00:04]} Bd6 {[%emt 0:00:03]} 21. Bxd6 {[%emt 0:00:05]} Qxd6 {[%emt 0:00:01]} 22. Rxb7 {[%emt 0:00:02]} Rfb8 {[%emt 0:00:17]} 23. Qb3 {[%emt 0:00:07]} Bc8 {[%emt 0:00:13]} 24. Rxb8 {[%emt 0:00:05]} Rxb8 {[%emt 0:00:04]} 25. Qc3 {[%emt 0:00:01]} Bb7 {[%emt 0:00:05]} 26. Ne5 {[%emt 0:00:03]} Rc8 {[%emt 0:00:07]} 27. Nd3 {[%emt 0:00:08]} Ba8 {[%emt 0:00:21]} 28. Nc5 {[%emt 0:00:03]} Rb8 {[%emt 0:00:06]} 29. b3 {[%emt 0:00:04]} Rc8 {[%emt 0:00:05]} 30. Qa5 {[%emt 0:00:04]} Qe7 {[%emt 0:00:06]} 31. Nd3 {[%emt 0:00:06]} Qd7 {[%emt 0:00:12]} 32. Qc5 {[%emt 0:00:07]} f6 {[%emt 0:00:12]} 33. Nb4 {[%emt 0:00:03]} Bb7 {[%emt 0:00:15]} 34. Qxa7 {[%emt 0:00:06]} Ra8 {[%emt 0:00:18]} 35. Qc5 {[%emt 0:00:03]} Rc8 {[%emt 0:00:05]} 36. a4 {[%emt 0:00:03]} Ba8 {[%emt 0:00:03]} 37. Nxd5 {[%emt 0:00:05]} Re8 {[%emt 0:00:05]} 38. Nb6 {[%emt 0:00:03]} Qb7 {[%emt 0:00:03]} 39. Nxa8 {[%emt 0:00:02]} Qxa8 {[%emt 0:00:01]} 40. Qxc6 {[%emt 0:00:02]} Qb8 {[%emt 0:00:02]} 41. Qc4+ {[%emt 0:00:04]} Kh7 {[%emt 0:00:04]} 42. b4 {[%emt 0:00:03]} Rd8 {[%emt 0:00:03]} 43. b5 {[%emt 0:00:01]} Qa8 {[%emt 0:00:04]} 44. Qb4 {[%emt 0:00:04]} 1-0